[Event "Live Chess"]
[Site "Chess.com"]
[Date "2023.05.21"]
[Round "-"]
[White "whitedjohn"]
[Black "WilliamofOrange16th"]
[Result "1-0"]
[WhiteElo "1662"]
[BlackElo "1866"]
[TimeControl "300"]
[EndTime "3:58:22 PDT"]
[Termination "whitedjohn won by resignation"]

1. e4 {[%clk 0:04:59]} 1... d6 {[%clk 0:04:54.8]} 2. d4 {[%clk 0:04:57.4]} 2...
Nf6 {[%clk 0:04:50.4]} 3. Nc3 {[%clk 0:04:56.1]} 3... Nbd7 {[%clk 0:04:46.9]} 4.
Bc4 {[%clk 0:04:53.2]} 4... e5 {[%clk 0:04:45.6]} 5. dxe5 {[%clk 0:04:50.7]}
5... dxe5 {[%clk 0:04:45.5]} 6. Bg5 {[%clk 0:04:47.3]} 6... c6 {[%clk
0:04:43.9]} 7. Nf3 {[%clk 0:04:45.2]} 7... Be7 {[%clk 0:04:42.4]} 8. Qd2 {[%clk
0:04:43.9]} 8... Qc7 {[%clk 0:04:41.5]} 9. O-O-O {[%clk 0:04:42.3]} 9... O-O
{[%clk 0:04:40.6]} 10. h4 {[%clk 0:04:34]} 10... b5 {[%clk 0:04:39.6]} 11. Bb3
{[%clk 0:04:27]} 11... Nc5 {[%clk 0:04:38.8]} 12. Rhe1 {[%clk 0:04:23]} 12... a5
{[%clk 0:04:36.3]} 13. a4 {[%clk 0:04:20.1]} 13... Nxb3+ {[%clk 0:04:34.6]} 14.
cxb3 {[%clk 0:04:19]} 14... b4 {[%clk 0:04:32.7]} 15. Nb1 {[%clk 0:04:08.1]}
15... Be6 {[%clk 0:04:31.9]} 16. Bxf6 {[%clk 0:04:01.3]} 16... Bxf6 {[%clk
0:04:30.4]} 17. Qe3 {[%clk 0:03:59.6]} 17... Rfd8 {[%clk 0:04:27.5]} 18. Nbd2
{[%clk 0:03:55]} 18... c5 {[%clk 0:04:21]} 19. Nc4 {[%clk 0:03:52.2]} 19... Bxc4
{[%clk 0:04:12.3]} 20. bxc4 {[%clk 0:03:51]} 20... Qc6 {[%clk 0:04:10.2]} 21. b3
{[%clk 0:03:48.8]} 21... Kf8 {[%clk 0:04:04.7]} 22. Rd5 {[%clk 0:03:47]} 22...
Rxd5 {[%clk 0:04:02]} 23. exd5 {[%clk 0:03:45.7]} 23... Qd6 {[%clk 0:03:57.9]}
24. Nxe5 {[%clk 0:03:43.2]} 24... Bxh4 {[%clk 0:03:51.7]} 25. g3 {[%clk
0:03:40.9]} 25... Bf6 {[%clk 0:03:49.9]} 26. f4 {[%clk 0:03:39.4]} 26... g6
{[%clk 0:03:47.9]} 27. Ng4 {[%clk 0:03:16.7]} 27... Bg7 {[%clk 0:03:44.2]} 28.
Ne5 {[%clk 0:02:53.9]} 28... h5 {[%clk 0:03:31.6]} 29. Nd3 {[%clk 0:02:52.1]}
29... Rc8 {[%clk 0:03:18.4]} 30. Kc2 {[%clk 0:02:37.1]} 30... Qf6 {[%clk
0:03:16.5]} 31. Ne5 {[%clk 0:02:31.5]} 31... Qf5+ {[%clk 0:03:11.8]} 32. Qe4
{[%clk 0:02:29.1]} 32... Qxe4+ {[%clk 0:03:08.9]} 33. Rxe4 {[%clk 0:02:27.5]}
33... Kg8 {[%clk 0:02:58.2]} 34. Nc6 {[%clk 0:02:23.7]} 34... Bf8 {[%clk
0:02:55.7]} 35. Nxa5 {[%clk 0:02:18.4]} 35... Kg7 {[%clk 0:02:54.5]} 36. Nc6
{[%clk 0:02:14.1]} 36... Rc7 {[%clk 0:02:46.5]} 37. a5 {[%clk 0:02:10.6]} 37...
f5 {[%clk 0:02:42.7]} 38. Re6 {[%clk 0:02:07]} 38... Rc8 {[%clk 0:02:39.3]} 39.
a6 {[%clk 0:02:04.5]} 39... Kf7 {[%clk 0:02:37.3]} 40. a7 {[%clk 0:02:02.1]}
40... h4 {[%clk 0:02:32.6]} 41. gxh4 {[%clk 0:01:58.4]} 41... Bh6 {[%clk
0:02:29.7]} 42. Nb8 {[%clk 0:01:54.2]} 42... Bxf4 {[%clk 0:02:26.4]} 43. a8=Q
{[%clk 0:01:52.1]} 1-0

[Event "Live Chess"]
[Site "Chess.com"]
[Date "2023.05.21"]
[Round "-"]
[White "davigator"]
[Black "smoggyrabbit"]
[Result "1-0"]
[WhiteElo "2325"]
[BlackElo "1704"]
[TimeControl "300"]
[EndTime "3:58:28 PDT"]
[Termination "davigator won on time"]

1. e4 {[%clk 0:04:57.7]} 1... e6 {[%clk 0:04:58.6]} 2. d4 {[%clk 0:04:55.7]}
2... d5 {[%clk 0:04:57.7]} 3. Nc3 {[%clk 0:04:53.5]} 3... Nf6 {[%clk 0:04:56.2]}
4. e5 {[%clk 0:04:52.2]} 4... Nfd7 {[%clk 0:04:55.3]} 5. f4 {[%clk 0:04:51.6]}
5... c5 {[%clk 0:04:54.5]} 6. Nf3 {[%clk 0:04:51.1]} 6... Nc6 {[%clk 0:04:53.5]}
7. Be3 {[%clk 0:04:50.5]} 7... Be7 {[%clk 0:04:47.2]} 8. a3 {[%clk 0:04:48.5]}
8... b6 {[%clk 0:04:45.8]} 9. Bb5 {[%clk 0:04:46.3]} 9... Bb7 {[%clk 0:04:44.2]}
10. O-O {[%clk 0:04:44.4]} 10... O-O {[%clk 0:04:41.9]} 11. Qd2 {[%clk
0:04:36.4]} 11... cxd4 {[%clk 0:04:08.7]} 12. Nxd4 {[%clk 0:04:32]} 12... Nxd4
{[%clk 0:04:04.5]} 13. Bxd4 {[%clk 0:04:31]} 13... Nc5 {[%clk 0:04:02.3]} 14. f5
{[%clk 0:04:26.5]} 14... exf5 {[%clk 0:03:43.6]} 15. Rxf5 {[%clk 0:04:23.6]}
15... Ne4 {[%clk 0:03:35.8]} 16. Qe3 {[%clk 0:04:19.9]} 16... Rc8 {[%clk
0:02:56.7]} 17. Raf1 {[%clk 0:04:09]} 17... g6 {[%clk 0:02:38.8]} 18. R5f3
{[%clk 0:03:59.6]} 18... Bg5 {[%clk 0:02:25.1]} 19. Qd3 {[%clk 0:03:57.3]} 19...
Nd2 {[%clk 0:02:14]} 20. Ne2 {[%clk 0:03:07]} 20... Nxf1 {[%clk 0:02:06.1]} 21.
Rxf1 {[%clk 0:03:05.4]} 21... Be7 {[%clk 0:01:34.2]} 22. b4 {[%clk 0:03:01]}
22... a5 {[%clk 0:01:28.8]} 23. c3 {[%clk 0:03:00.1]} 23... axb4 {[%clk
0:01:25.3]} 24. axb4 {[%clk 0:02:59.6]} 24... Qc7 {[%clk 0:01:15.1]} 25. Nf4
{[%clk 0:02:57.8]} 25... Bg5 {[%clk 0:00:54.2]} 26. Nh3 {[%clk 0:02:55.8]} 26...
Bh6 {[%clk 0:00:50.7]} 27. Qf3 {[%clk 0:02:51.5]} 27... Bg7 {[%clk 0:00:48.9]}
28. Re1 {[%clk 0:02:48.8]} 28... Bc6 {[%clk 0:00:42.8]} 29. Bxc6 {[%clk
0:02:45.6]} 29... Qxc6 {[%clk 0:00:42.7]} 30. Nf4 {[%clk 0:02:44.6]} 30... Rfe8
{[%clk 0:00:40.4]} 31. Nxd5 {[%clk 0:02:42.2]} 31... Qe6 {[%clk 0:00:16.6]} 32.
Nxb6 {[%clk 0:02:39.5]} 32... Bxe5 {[%clk 0:00:14.1]} 33. Rxe5 {[%clk
0:02:35.3]} 33... Qa2 {[%clk 0:00:08.8]} 34. Nxc8 {[%clk 0:02:32.2]} 34... Rxc8
{[%clk 0:00:07.2]} 35. Qe2 {[%clk 0:02:30]} 35... Qb1+ {[%clk 0:00:04.8]} 36.
Qe1 {[%clk 0:02:29.2]} 36... Qb2 {[%clk 0:00:02.2]} 37. Re8+ {[%clk 0:02:28.2]}
1-0

[Event "Live Chess"]
[Site "Chess.com"]
[Date "2023.05.21"]
[Round "-"]
[White "Missedidea"]
[Black "Greenbecker"]
[Result "1-0"]
[WhiteElo "1847"]
[BlackElo "1644"]
[TimeControl "300"]
[EndTime "3:58:46 PDT"]
[Termination "Missedidea won by resignation"]

1. d4 {[%clk 0:04:58.7]} 1... d5 {[%clk 0:04:58.7]} 2. c4 {[%clk 0:04:57.1]}
2... e6 {[%clk 0:04:56.9]} 3. Nc3 {[%clk 0:04:55.5]} 3... Nf6 {[%clk 0:04:56.4]}
4. Bg5 {[%clk 0:04:53.7]} 4... Bb4 {[%clk 0:04:55.1]} 5. Qa4+ {[%clk 0:04:49.8]}
5... Nc6 {[%clk 0:04:53.3]} 6. Nf3 {[%clk 0:04:48.5]} 6... Bd7 {[%clk
0:04:51.8]} 7. Qc2 {[%clk 0:04:46.3]} 7... h6 {[%clk 0:04:48.4]} 8. Bxf6 {[%clk
0:04:44.1]} 8... Qxf6 {[%clk 0:04:46.5]} 9. e3 {[%clk 0:04:43.1]} 9... e5 {[%clk
0:04:42.8]} 10. cxd5 {[%clk 0:04:40.3]} 10... exd4 {[%clk 0:04:41.3]} 11. dxc6
{[%clk 0:04:33.5]} 11... dxc3 {[%clk 0:04:34.9]} 12. cxd7+ {[%clk 0:04:30.8]}
12... Kxd7 {[%clk 0:04:32.2]} 13. O-O-O+ {[%clk 0:04:25.6]} 13... Kc8 {[%clk
0:04:25]} 14. b3 {[%clk 0:04:14.2]} 14... Ba3+ {[%clk 0:04:19.2]} 15. Kb1 {[%clk
0:04:12.3]} 15... Bb2 {[%clk 0:04:18.2]} 16. Bd3 {[%clk 0:04:06.4]} 16... a5
{[%clk 0:04:12.6]} 17. Bf5+ {[%clk 0:04:02.9]} 17... Kb8 {[%clk 0:04:11.2]} 18.
Rd7 {[%clk 0:03:46.6]} 18... a4 {[%clk 0:04:02.5]} 19. b4 {[%clk 0:03:43.1]}
19... g6 {[%clk 0:03:31]} 20. Be4 {[%clk 0:03:33.5]} 20... Re8 {[%clk
0:03:28.3]} 21. Rhd1 {[%clk 0:03:25.1]} 21... a3 {[%clk 0:03:25.6]} 22. Nd4
{[%clk 0:03:15.5]} 22... Qe5 {[%clk 0:03:16.3]} 23. Bf3 {[%clk 0:03:05.1]} 23...
Ka7 {[%clk 0:02:55.2]} 24. Rd5 {[%clk 0:03:00]} 24... Qxh2 {[%clk 0:02:45.1]}
25. Nb5+ {[%clk 0:02:55.9]} 25... Kb6 {[%clk 0:02:40.7]} 26. Nxc3 {[%clk
0:02:49.6]} 26... Qh4 {[%clk 0:02:24.3]} 27. Na4+ {[%clk 0:02:40.2]} 27... Rxa4
{[%clk 0:02:22.1]} 28. Qxa4 {[%clk 0:02:32.8]} 1-0

[Event "Live Chess"]
[Site "Chess.com"]
[Date "2023.05.21"]
[Round "-"]
[White "SmoothBaron"]
[Black "TheSmoulderingMaster"]
[Result "1-0"]
[WhiteElo "2359"]
[BlackElo "1653"]
[TimeControl "300"]
[EndTime "3:58:47 PDT"]
[Termination "SmoothBaron won by resignation"]

1. e4 {[%clk 0:04:57.1]} 1... c5 {[%clk 0:04:54.1]} 2. f4 {[%clk 0:04:55.2]}
2... d6 {[%clk 0:04:53]} 3. Nc3 {[%clk 0:04:53.3]} 3... Nc6 {[%clk 0:04:52.2]}
4. Bb5 {[%clk 0:04:52.4]} 4... Bd7 {[%clk 0:04:50.8]} 5. d3 {[%clk 0:04:50.9]}
5... Nf6 {[%clk 0:04:49.3]} 6. Be3 {[%clk 0:04:48.5]} 6... g6 {[%clk 0:04:47.5]}
7. h3 {[%clk 0:04:45.9]} 7... Bg7 {[%clk 0:04:46.7]} 8. Qf3 {[%clk 0:04:42]}
8... O-O {[%clk 0:04:45.5]} 9. Nge2 {[%clk 0:04:40.7]} 9... a6 {[%clk
0:04:43.1]} 10. Bxc6 {[%clk 0:04:39.2]} 10... Bxc6 {[%clk 0:04:43]} 11. O-O
{[%clk 0:04:35.7]} 11... b5 {[%clk 0:04:41.5]} 12. Rad1 {[%clk 0:04:32.6]} 12...
e6 {[%clk 0:04:38.1]} 13. Qf2 {[%clk 0:04:30.2]} 13... Rc8 {[%clk 0:04:29.3]}
14. e5 {[%clk 0:04:23.2]} 14... dxe5 {[%clk 0:04:26.3]} 15. Bxc5 {[%clk
0:04:18.4]} 15... Re8 {[%clk 0:04:19.8]} 16. fxe5 {[%clk 0:04:15.7]} 16... Nd5
{[%clk 0:04:18.6]} 17. Qxf7+ {[%clk 0:04:10.7]} 17... Kh8 {[%clk 0:04:16.9]} 18.
Bd6 {[%clk 0:03:45.6]} 18... Ne3 {[%clk 0:04:06]} 19. Nf4 {[%clk 0:03:33.4]}
19... Nxf1 {[%clk 0:03:46]} 20. Rxf1 {[%clk 0:03:27.8]} 20... Qg5 {[%clk
0:03:41.5]} 21. d4 {[%clk 0:02:44.9]} 21... b4 {[%clk 0:03:30.4]} 22. Nd1 {[%clk
0:02:34.8]} 22... Bb5 {[%clk 0:03:15.4]} 23. Rf2 {[%clk 0:02:30.7]} 23... Bf8
{[%clk 0:02:49.2]} 24. Nxe6 {[%clk 0:02:19.9]} 24... Rxe6 {[%clk 0:02:27.2]} 25.
Bxf8 {[%clk 0:02:18]} 1-0

[Event "Live Chess"]
[Site "Chess.com"]
[Date "2023.05.21"]
[Round "-"]
[White "EdenHazard8"]
[Black "sanjesh_ananda"]
[Result "1-0"]
[WhiteElo "1948"]
[BlackElo "1212"]
[TimeControl "300"]
[EndTime "3:58:49 PDT"]
[Termination "EdenHazard8 won by resignation"]

1. e4 {[%clk 0:04:59.4]} 1... e5 {[%clk 0:04:58.7]} 2. Nf3 {[%clk 0:04:58.5]}
2... Nc6 {[%clk 0:04:57.8]} 3. Bc4 {[%clk 0:04:57.5]} 3... Nf6 {[%clk
0:04:52.7]} 4. Ng5 {[%clk 0:04:56.5]} 4... d5 {[%clk 0:04:51.4]} 5. exd5 {[%clk
0:04:56.4]} 5... Na5 {[%clk 0:04:50.4]} 6. Bb5+ {[%clk 0:04:55.3]} 6... c6
{[%clk 0:04:44.6]} 7. dxc6 {[%clk 0:04:55.2]} 7... Nxc6 {[%clk 0:04:23.6]} 8.
O-O {[%clk 0:04:53.7]} 8... Qb6 {[%clk 0:04:07.2]} 9. Nc3 {[%clk 0:04:48.3]}
9... Bb4 {[%clk 0:03:59]} 10. Qe2 {[%clk 0:04:44.2]} 10... O-O {[%clk
0:03:35.3]} 11. a3 {[%clk 0:04:36.9]} 11... Bc5 {[%clk 0:03:25.3]} 12. Na4
{[%clk 0:04:32.7]} 12... Nd4 {[%clk 0:03:12.2]} 13. Nxb6 {[%clk 0:04:25.7]}
13... Nxe2+ {[%clk 0:03:10.5]} 14. Bxe2 {[%clk 0:04:25.6]} 14... Bxb6 {[%clk
0:03:03.3]} 15. b4 {[%clk 0:04:23.4]} 15... Bf5 {[%clk 0:02:48.2]} 16. d3 {[%clk
0:04:16.5]} 16... Bd4 {[%clk 0:02:46.2]} 17. Rb1 {[%clk 0:04:15.2]} 17... Rac8
{[%clk 0:02:43]} 18. c4 {[%clk 0:04:13.7]} 18... a6 {[%clk 0:02:31.9]} 19. Be3
{[%clk 0:04:12]} 19... Ng4 {[%clk 0:02:23.6]} 20. Bxd4 {[%clk 0:04:09.2]} 20...
exd4 {[%clk 0:02:22.3]} 21. Ne4 {[%clk 0:04:06.1]} 21... Ne5 {[%clk 0:02:00.3]}
22. Nd6 {[%clk 0:04:04]} 22... Rc6 {[%clk 0:01:44.6]} 23. Nxf5 {[%clk 0:04:02]}
23... g6 {[%clk 0:01:26.3]} 24. Ne7+ {[%clk 0:04:00.3]} 1-0

[Event "Live Chess"]
[Site "Chess.com"]
[Date "2023.05.21"]
[Round "-"]
[White "HadesLearmonth"]
[Black "Doge_Dandolo"]
[Result "0-1"]
[WhiteElo "1197"]
[BlackElo "1872"]
[TimeControl "300"]
[EndTime "3:58:50 PDT"]
[Termination "Doge_Dandolo won by checkmate"]

1. e4 {[%clk 0:04:56.4]} 1... c6 {[%clk 0:04:59]} 2. d4 {[%clk 0:04:54.5]} 2...
d5 {[%clk 0:04:58.4]} 3. e5 {[%clk 0:04:53.6]} 3... Bf5 {[%clk 0:04:56.9]} 4.
Nf3 {[%clk 0:04:51.4]} 4... e6 {[%clk 0:04:55.4]} 5. Bd3 {[%clk 0:04:49.8]} 5...
Bxd3 {[%clk 0:04:53.7]} 6. Qxd3 {[%clk 0:04:49.1]} 6... c5 {[%clk 0:04:53.4]} 7.
c3 {[%clk 0:04:45.2]} 7... Nd7 {[%clk 0:04:50.2]} 8. O-O {[%clk 0:04:44]} 8...
Ne7 {[%clk 0:04:49.3]} 9. Nbd2 {[%clk 0:04:41]} 9... Nc6 {[%clk 0:04:48.4]} 10.
Nb3 {[%clk 0:04:39.6]} 10... cxd4 {[%clk 0:04:46.7]} 11. cxd4 {[%clk 0:04:38.2]}
11... Be7 {[%clk 0:04:45.9]} 12. Bf4 {[%clk 0:04:14.2]} 12... O-O {[%clk
0:04:43.9]} 13. Rad1 {[%clk 0:04:11.1]} 13... f6 {[%clk 0:04:39.9]} 14. Rc1
{[%clk 0:04:07.6]} 14... fxe5 {[%clk 0:04:30.3]} 15. Bxe5 {[%clk 0:04:04.3]}
15... Ndxe5 {[%clk 0:04:28.5]} 16. Nxe5 {[%clk 0:04:02.8]} 16... Nxe5 {[%clk
0:04:26.5]} 17. dxe5 {[%clk 0:04:01.2]} 17... Rc8 {[%clk 0:04:23.8]} 18. Rc3
{[%clk 0:03:50.6]} 18... Rxc3 {[%clk 0:04:20.4]} 19. Qxc3 {[%clk 0:03:49.4]}
19... Qc8 {[%clk 0:04:11.4]} 20. Qg3 {[%clk 0:03:41.5]} 20... b6 {[%clk
0:04:04.7]} 21. Nd4 {[%clk 0:03:38.4]} 21... Bc5 {[%clk 0:03:57.9]} 22. Nf3
{[%clk 0:03:30.5]} 22... Qc7 {[%clk 0:03:46.3]} 23. Ng5 {[%clk 0:03:25]} 23...
Qe7 {[%clk 0:03:41.8]} 24. a3 {[%clk 0:03:13.4]} 24... a5 {[%clk 0:03:40.1]} 25.
Qh4 {[%clk 0:03:08.2]} 25... h6 {[%clk 0:03:32.8]} 26. Nf3 {[%clk 0:03:04.5]}
26... Qc7 {[%clk 0:03:23.7]} 27. Rc1 {[%clk 0:02:51.9]} 27... Bxf2+ {[%clk
0:03:19.8]} 28. Kxf2 {[%clk 0:02:45.2]} 28... Qxc1 {[%clk 0:03:16.9]} 29. b4
{[%clk 0:02:39.2]} 29... Qxa3 {[%clk 0:03:12.2]} 30. bxa5 {[%clk 0:02:35.4]}
30... Qxa5 {[%clk 0:03:08.6]} 31. g4 {[%clk 0:02:32.2]} 31... Qc3 {[%clk
0:02:59.8]} 32. Qg3 {[%clk 0:02:28]} 32... b5 {[%clk 0:02:51.8]} 33. Kg2 {[%clk
0:02:23.9]} 33... Rxf3 {[%clk 0:02:48.5]} 34. Qxf3 {[%clk 0:02:22.7]} 34...
Qxf3+ {[%clk 0:02:47.6]} 35. Kxf3 {[%clk 0:02:22.6]} 35... Kf7 {[%clk
0:02:39.6]} 36. Ke3 {[%clk 0:02:21.6]} 36... Kg6 {[%clk 0:02:38.7]} 37. Kd4
{[%clk 0:02:20.7]} 37... b4 {[%clk 0:02:34]} 38. h4 {[%clk 0:02:16.5]} 38... h5
{[%clk 0:02:32.4]} 39. g5 {[%clk 0:02:15]} 39... Kf5 {[%clk 0:02:31.1]} 40. Kd3
{[%clk 0:02:12.2]} 40... Kxe5 {[%clk 0:02:29.3]} 41. Kc2 {[%clk 0:02:11.4]}
41... Kd4 {[%clk 0:02:26.8]} 42. Kb3 {[%clk 0:02:10.2]} 42... Kd3 {[%clk
0:02:25.4]} 43. Kxb4 {[%clk 0:02:08.4]} 43... e5 {[%clk 0:02:25]} 44. g6 {[%clk
0:02:06.5]} 44... e4 {[%clk 0:02:24.1]} 45. Kc5 {[%clk 0:02:05.6]} 45... e3
{[%clk 0:02:22.7]} 46. Kxd5 {[%clk 0:02:04.8]} 46... e2 {[%clk 0:02:22]} 47. Ke6
{[%clk 0:02:03]} 47... e1=Q+ {[%clk 0:02:20.5]} 48. Kf7 {[%clk 0:02:02.4]} 48...
Qxh4 {[%clk 0:02:19.4]} 49. Kxg7 {[%clk 0:02:01.6]} 49... Qg5 {[%clk 0:02:18]}
50. Kh8 {[%clk 0:01:58.7]} 50... h4 {[%clk 0:02:16.5]} 51. Kg7 {[%clk
0:01:53.6]} 51... h3 {[%clk 0:02:15]} 52. Kf7 {[%clk 0:01:53]} 52... h2 {[%clk
0:02:13.9]} 53. g7 {[%clk 0:01:51.7]} 53... h1=Q {[%clk 0:02:11.9]} 54. g8=Q
{[%clk 0:01:50.9]} 54... Qf3+ {[%clk 0:02:09]} 55. Ke8 {[%clk 0:01:48.1]} 55...
Qxg8+ {[%clk 0:02:07.5]} 56. Kd7 {[%clk 0:01:47.5]} 56... Qff7+ {[%clk
0:02:04.5]} 57. Kd6 {[%clk 0:01:46.2]} 57... Qgg6+ {[%clk 0:02:03.4]} 58. Kc5
{[%clk 0:01:44.8]} 58... Qff5+ {[%clk 0:02:01.8]} 59. Kb4 {[%clk 0:01:44]} 59...
Qb6+ {[%clk 0:01:59.3]} 60. Ka3 {[%clk 0:01:43.1]} 60... Qfa5# {[%clk
0:01:58.2]} 0-1

[Event "Live Chess"]
[Site "Chess.com"]
[Date "2023.05.21"]
[Round "-"]
[White "Alfiedog12"]
[Black "McSlash1"]
[Result "0-1"]
[WhiteElo "952"]
[BlackElo "2019"]
[TimeControl "300"]
[EndTime "3:59:03 PDT"]
[Termination "McSlash1 won by resignation"]

1. d4 {[%clk 0:04:52.6]} 1... Nf6 {[%clk 0:04:58.6]} 2. Bf4 {[%clk 0:04:50.9]}
2... g6 {[%clk 0:04:57.3]} 3. e3 {[%clk 0:04:49.5]} 3... Bg7 {[%clk 0:04:56.8]}
4. Nf3 {[%clk 0:04:47.4]} 4... O-O {[%clk 0:04:56.4]} 5. Bd3 {[%clk 0:04:44.8]}
5... c5 {[%clk 0:04:56.3]} 6. dxc5 {[%clk 0:04:42.2]} 6... Qa5+ {[%clk
0:04:54.7]} 7. c3 {[%clk 0:04:38.9]} 7... Qxc5 {[%clk 0:04:54.1]} 8. O-O {[%clk
0:04:30.4]} 8... Nc6 {[%clk 0:04:52.4]} 9. Re1 {[%clk 0:04:25.4]} 9... e5 {[%clk
0:04:49.4]} 10. Bg3 {[%clk 0:04:21.3]} 10... e4 {[%clk 0:04:48.2]} 11. b4 {[%clk
0:04:11.1]} 11... Qh5 {[%clk 0:04:45.6]} 12. Ne5 {[%clk 0:03:59.7]} 12... Qxd1
{[%clk 0:04:42.6]} 13. Rxd1 {[%clk 0:03:57.6]} 13... exd3 {[%clk 0:04:41.6]} 14.
Nxd3 {[%clk 0:03:56.6]} 14... Ne4 {[%clk 0:04:38.8]} 15. Nd2 {[%clk 0:03:54.1]}
15... Nxc3 {[%clk 0:04:37.3]} 16. Re1 {[%clk 0:03:42.1]} 16... Ne2+ {[%clk
0:04:35.1]} 17. Kh1 {[%clk 0:03:38.7]} 17... Bxa1 {[%clk 0:04:32.7]} 18. Rxa1
{[%clk 0:03:33.7]} 18... Nxg3+ {[%clk 0:04:32.2]} 19. hxg3 {[%clk 0:03:30.2]}
19... d6 {[%clk 0:04:28.6]} 20. Nf3 {[%clk 0:03:26.4]} 20... Bf5 {[%clk
0:04:26.1]} 21. Nf4 {[%clk 0:03:22.7]} 21... Ne5 {[%clk 0:04:25.4]} 22. Nd5
{[%clk 0:03:20]} 22... Kg7 {[%clk 0:04:21.4]} 23. Nxe5 {[%clk 0:03:16]} 23...
dxe5 {[%clk 0:04:21.3]} 24. Rc1 {[%clk 0:03:12.3]} 24... Rac8 {[%clk 0:04:19.1]}
25. Rxc8 {[%clk 0:03:01.5]} 25... Rxc8 {[%clk 0:04:19]} 26. Ne7 {[%clk
0:02:59.8]} 26... Rc2 {[%clk 0:04:17.8]} 27. Nxf5+ {[%clk 0:02:57.6]} 27... gxf5
{[%clk 0:04:17.7]} 28. a4 {[%clk 0:02:55.5]} 28... Rxf2 {[%clk 0:04:16.4]} 29.
Kg1 {[%clk 0:02:52.5]} 29... Rb2 {[%clk 0:04:16.3]} 30. b5 {[%clk 0:02:51.1]}
30... Ra2 {[%clk 0:04:15.4]} 31. Kf1 {[%clk 0:02:40.5]} 31... Rxa4 {[%clk
0:04:14]} 32. Ke2 {[%clk 0:02:39.9]} 32... Rb4 {[%clk 0:04:13]} 33. Kd3 {[%clk
0:02:39.2]} 33... Rxb5 {[%clk 0:04:12.2]} 34. Kc4 {[%clk 0:02:38.6]} 34... a6
{[%clk 0:04:11]} 35. Kc3 {[%clk 0:02:31.9]} 35... e4 {[%clk 0:04:09]} 36. Kd4
{[%clk 0:02:29.7]} 36... Kf6 {[%clk 0:04:08.3]} 37. Kc3 {[%clk 0:02:26.1]} 37...
Ke5 {[%clk 0:04:07]} 0-1

[Event "Live Chess"]
[Site "Chess.com"]
[Date "2023.05.21"]
[Round "-"]
[White "matt1979"]
[Black "Abde2012"]
[Result "1-0"]
[WhiteElo "1549"]
[BlackElo "751"]
[TimeControl "300"]
[EndTime "3:59:24 PDT"]
[Termination "matt1979 won by resignation"]

1. f4 {[%clk 0:04:58.3]} 1... c6 {[%clk 0:04:57.3]} 2. Nf3 {[%clk 0:04:56]} 2...
d5 {[%clk 0:04:56.5]} 3. e3 {[%clk 0:04:54.3]} 3... Bf5 {[%clk 0:04:53.8]} 4. d3
{[%clk 0:04:51.8]} 4... e6 {[%clk 0:04:52.5]} 5. Be2 {[%clk 0:04:50.6]} 5... Bd6
{[%clk 0:04:49.5]} 6. O-O {[%clk 0:04:49.1]} 6... h6 {[%clk 0:04:48.2]} 7. Qe1
{[%clk 0:04:47.5]} 7... Nf6 {[%clk 0:04:47.1]} 8. Nc3 {[%clk 0:04:43.8]} 8...
O-O {[%clk 0:04:44.8]} 9. Ne5 {[%clk 0:04:42.4]} 9... Bxe5 {[%clk 0:04:42.6]}
10. fxe5 {[%clk 0:04:40.9]} 10... Nfd7 {[%clk 0:04:40.2]} 11. d4 {[%clk
0:04:35.7]} 11... Qg5 {[%clk 0:04:24.2]} 12. e4 {[%clk 0:04:25.9]} 12... dxe4
{[%clk 0:04:21.9]} 13. Bxg5 {[%clk 0:04:24.4]} 13... hxg5 {[%clk 0:04:14.5]} 14.
Bc4 {[%clk 0:04:13.8]} 1-0

[Event "Live Chess"]
[Site "Chess.com"]
[Date "2023.05.21"]
[Round "-"]
[White "Sweet-O"]
[Black "apl_trainer"]
[Result "0-1"]
[WhiteElo "1420"]
[BlackElo "1781"]
[TimeControl "300"]
[EndTime "3:59:26 PDT"]
[Termination "apl_trainer won by resignation"]

1. d4 {[%clk 0:04:57.8]} 1... Nf6 {[%clk 0:04:58.8]} 2. Nc3 {[%clk 0:04:57.7]}
2... d5 {[%clk 0:04:57.7]} 3. Bf4 {[%clk 0:04:57.2]} 3... c5 {[%clk 0:04:56.4]}
4. e3 {[%clk 0:04:56.2]} 4... a6 {[%clk 0:04:52.7]} 5. f3 {[%clk 0:04:53.6]}
5... cxd4 {[%clk 0:04:50.2]} 6. Qxd4 {[%clk 0:04:52.4]} 6... Nc6 {[%clk
0:04:48.7]} 7. Qd2 {[%clk 0:04:50.8]} 7... e5 {[%clk 0:04:47.4]} 8. Bg3 {[%clk
0:04:49.3]} 8... Bb4 {[%clk 0:04:43.5]} 9. O-O-O {[%clk 0:04:46.1]} 9... O-O
{[%clk 0:04:39.7]} 10. Qd3 {[%clk 0:04:36.3]} 10... Be6 {[%clk 0:04:36.5]} 11.
f4 {[%clk 0:04:25.8]} 11... e4 {[%clk 0:04:18.6]} 12. Qd2 {[%clk 0:04:19.9]}
12... Qa5 {[%clk 0:04:16.7]} 13. Nge2 {[%clk 0:04:08.7]} 13... Rfd8 {[%clk
0:04:13]} 14. a3 {[%clk 0:04:00.4]} 14... Bxa3 {[%clk 0:04:08.1]} 15. bxa3
{[%clk 0:03:58]} 15... Qxa3+ {[%clk 0:04:06.3]} 16. Kb1 {[%clk 0:03:56.8]} 16...
Nb4 {[%clk 0:04:03.8]} 17. Nd4 {[%clk 0:03:36.2]} 17... Rac8 {[%clk 0:04:01]}
18. Be1 {[%clk 0:03:00]} 18... Rc5 {[%clk 0:03:48.9]} 19. Nb3 {[%clk 0:02:46.7]}
19... Rdc8 {[%clk 0:03:46.2]} 20. Nxc5 {[%clk 0:02:36.9]} 20... Rxc5 {[%clk
0:03:44.6]} 21. h3 {[%clk 0:02:17]} 21... Ra5 {[%clk 0:03:36]} 0-1